[Event "Titled Tuesday Blitz April 12 Early 2022"]
[White "Kucuksari, Kaan"]
[Black "Tanenbaum, Zachary"]
[WhiteFideId "6380166"]
[BlackFideId "2060850"]
[WhiteElo "2305"]
[BlackElo "2168"]
[Result "1-0"]
[Round "10"]
[TimeControl "180+1"]
[Date "2022.04.12"]
[WhiteClock "0:00:16"]
[BlackClock "0:00:12"]

1. d4 {[%clk 0:03:00]}  d5 {[%clk 0:02:59]} 2. c4 {[%clk 0:03:01]}  dxc4 {[%clk 0:03:00]} 3. Nf3 {[%clk 0:03:00]}  a6 {[%clk 0:03:00]} 4. e4 {[%clk 0:02:47]}  b5 {[%clk 0:02:59]} 5. a4 {[%clk 0:02:41]}  Bb7 {[%clk 0:02:59]} 6. axb5 {[%clk 0:02:41]}  axb5 {[%clk 0:03:00]} 7. Rxa8 {[%clk 0:02:41]}  Bxa8 {[%clk 0:03:01]} 8. Nc3 {[%clk 0:02:40]}  e6 {[%clk 0:02:53]} 9. Nxb5 {[%clk 0:02:39]}  Bxe4 {[%clk 0:02:53]} 10. Nc3 {[%clk 0:02:37]}  Bd5 {[%clk 0:02:45]} 11. Ne5 {[%clk 0:02:31]}  Bd6 {[%clk 0:02:40]} 12. Qa4+ {[%clk 0:02:18]}  Nd7 {[%clk 0:02:37]} 13. Nxc4 {[%clk 0:02:09]}  Ne7 {[%clk 0:02:33]} 14. Nxd6+ {[%clk 0:02:07]}  cxd6 {[%clk 0:02:34]} 15. Bb5 {[%clk 0:02:06]}  Qc8 {[%clk 0:02:08]} 16. O-O {[%clk 0:02:00]}  Bc6 {[%clk 0:02:07]} 17. Bg5 {[%clk 0:01:56]}  f6 {[%clk 0:01:59]} 18. Bf4 {[%clk 0:01:56]}  e5 {[%clk 0:01:51]} 19. d5 {[%clk 0:01:51]}  Bxb5 {[%clk 0:01:27]} 20. Nxb5 {[%clk 0:01:52]}  Qb8 {[%clk 0:01:16]} 21. Be3 {[%clk 0:01:25]}  O-O {[%clk 0:01:12]} 22. Ba7 {[%clk 0:01:25]}  Qa8 {[%clk 0:00:53]} 23. Nc7 {[%clk 0:01:25]}  Qc8 {[%clk 0:00:46]} 24. Ne6 {[%clk 0:01:25]}  Rf7 {[%clk 0:00:41]} 25. Rd1 {[%clk 0:01:12]}  Nf8 {[%clk 0:00:32]} 26. b4 {[%clk 0:00:43]}  Nxe6 {[%clk 0:00:24]} 27. dxe6 {[%clk 0:00:44]}  Qxe6 {[%clk 0:00:25]} 28. b5 {[%clk 0:00:44]}  Nd5 {[%clk 0:00:21]} 29. b6 {[%clk 0:00:42]}  Nc3 {[%clk 0:00:19]} 30. Qc2 {[%clk 0:00:35]}  Nxd1 {[%clk 0:00:19]} 31. Qxd1 {[%clk 0:00:35]}  d5 {[%clk 0:00:18]} 32. Qa4 {[%clk 0:00:32]}  Qd7 {[%clk 0:00:18]} 33. Qb3 {[%clk 0:00:32]}  d4 {[%clk 0:00:17]} 34. Qd3 {[%clk 0:00:29]}  h6 {[%clk 0:00:16]} 35. h3 {[%clk 0:00:23]}  e4 {[%clk 0:00:15]} 36. Qxe4 {[%clk 0:00:21]}  d3 {[%clk 0:00:16]} 37. Qe1 {[%clk 0:00:22]}  d2 {[%clk 0:00:17]} 38. Qd1 {[%clk 0:00:22]}  Re7 {[%clk 0:00:17]} 39. Kh2 {[%clk 0:00:16]}  Re1 {[%clk 0:00:16]} 40. Qb3+ {[%clk 0:00:17]}  Kh8 {[%clk 0:00:15]} 41. b7 {[%clk 0:00:16]}  Qd6+ {[%clk 0:00:14]} 42. g3 {[%clk 0:00:12]}  Rh1+ {[%clk 0:00:12]} 43. Kxh1 {[%clk 0:00:09]}  d1=Q+ {[%clk 0:00:08]} 44. Qxd1 {[%clk 0:00:09]}  Qxd1+ {[%clk 0:00:09]} 45. Kh2 {[%clk 0:00:10]}  Kh7 {[%clk 0:00:06]} 46. b8=Q {[%clk 0:00:11]}  Qf3 {[%clk 0:00:04]} 47. Qb1+ {[%clk 0:00:10]}  Kg8 {[%clk 0:00:05]} 48. Be3 {[%clk 0:00:11]}  Kf7 {[%clk 0:00:05]} 49. Qa2+ {[%clk 0:00:11]}  Kg6 {[%clk 0:00:05]} 50. Qd2 {[%clk 0:00:12]}  Kh7 {[%clk 0:00:05]} 51. Qd3+ {[%clk 0:00:12]}  Kg8 {[%clk 0:00:06]} 52. Qd4 {[%clk 0:00:13]}  Kh7 {[%clk 0:00:06]} 53. h4 {[%clk 0:00:13]}  Kg8 {[%clk 0:00:06]} 54. Qf4 {[%clk 0:00:14]}  Qd1 {[%clk 0:00:07]} 55. Qb8+ {[%clk 0:00:14]}  Kh7 {[%clk 0:00:07]} 56. Qb4 {[%clk 0:00:14]}  Kg8 {[%clk 0:00:07]} 57. Qe4 {[%clk 0:00:14]}  Kh8 {[%clk 0:00:07]} 58. Kg2 {[%clk 0:00:14]}  Kg8 {[%clk 0:00:08]} 59. Qf3 {[%clk 0:00:14]}  Qc2 {[%clk 0:00:08]} 60. Qd5+ {[%clk 0:00:14]}  Kh7 {[%clk 0:00:08]} 61. h5 {[%clk 0:00:15]}  Kh8 {[%clk 0:00:08]} 62. Qd4 {[%clk 0:00:14]}  Kh7 {[%clk 0:00:08]} 63. Qf4 {[%clk 0:00:14]}  Kh8 {[%clk 0:00:08]} 64. Qg4 {[%clk 0:00:13]}  Kg8 {[%clk 0:00:08]} 65. Bxh6 {[%clk 0:00:12]}  Qc6+ {[%clk 0:00:07]} 66. Kh2 {[%clk 0:00:12]}  Qc7 {[%clk 0:00:07]} 67. Qxg7+ {[%clk 0:00:11]}  Qxg7 {[%clk 0:00:08]} 68. Bxg7 {[%clk 0:00:12]}  Kxg7 {[%clk 0:00:09]} 69. g4 {[%clk 0:00:13]}  Kh6 {[%clk 0:00:09]} 70. Kg3 {[%clk 0:00:12]}  Kg5 {[%clk 0:00:09]} 71. f4+ {[%clk 0:00:12]}  Kh6 {[%clk 0:00:10]} 72. Kh4 {[%clk 0:00:13]}  Kg7 {[%clk 0:00:10]} 73. g5 {[%clk 0:00:14]}  Kf7 {[%clk 0:00:11]} 74. Kg4 {[%clk 0:00:14]}  Ke6 {[%clk 0:00:12]} 75. g6 {[%clk 0:00:13]}  f5+ {[%clk 0:00:11]} 76. Kg5 {[%clk 0:00:14]}  Ke7 {[%clk 0:00:11]} 77. Kxf5 {[%clk 0:00:15]}  Kf8 {[%clk 0:00:12]} 78. Kg5 {[%clk 0:00:15]}  Kg8 {[%clk 0:00:12]} 79. h6 {[%clk 0:00:16]} 1-0


[Site "https://www.chess.com"]

[Event "Titled Tuesday Blitz April 12 Early 2022"]
[White "Le, Tuan Minh"]
[Black "Matlakov, Maxim"]
[WhiteFideId "12401153"]
[BlackFideId "4168003"]
[WhiteElo "2450"]
[BlackElo "2669"]
[Result "1-0"]
[Round "10"]
[TimeControl "180+1"]
[Date "2022.04.12"]
[WhiteClock "0:00:18"]
[BlackClock "0:00:12"]

1. d4 {[%clk 0:03:00]}  Nf6 {[%clk 0:02:59]} 2. Nf3 {[%clk 0:03:01]}  d5 {[%clk 0:02:59]} 3. Bf4 {[%clk 0:03:01]}  e6 {[%clk 0:03:00]} 4. e3 {[%clk 0:03:02]}  Bd6 {[%clk 0:03:00]} 5. Bg3 {[%clk 0:03:02]}  O-O {[%clk 0:02:59]} 6. c4 {[%clk 0:03:03]}  c5 {[%clk 0:02:46]} 7. Nc3 {[%clk 0:03:02]}  cxd4 {[%clk 0:02:43]} 8. Nxd4 {[%clk 0:02:49]}  Bxg3 {[%clk 0:02:26]} 9. hxg3 {[%clk 0:02:50]}  h6 {[%clk 0:02:25]} 10. Rc1 {[%clk 0:02:44]}  a6 {[%clk 0:02:20]} 11. cxd5 {[%clk 0:02:15]}  Nxd5 {[%clk 0:02:20]} 12. Be2 {[%clk 0:02:15]}  Nxc3 {[%clk 0:02:03]} 13. Rxc3 {[%clk 0:02:14]}  e5 {[%clk 0:02:00]} 14. Nb3 {[%clk 0:02:09]}  Qe7 {[%clk 0:01:51]} 15. O-O {[%clk 0:02:01]}  Nc6 {[%clk 0:01:51]} 16. Nc5 {[%clk 0:01:54]}  Rd8 {[%clk 0:01:38]} 17. Qb3 {[%clk 0:01:46]}  Rb8 {[%clk 0:01:12]} 18. Bf3 {[%clk 0:01:33]}  Bf5 {[%clk 0:01:11]} 19. Qa3 {[%clk 0:01:06]}  Na7 {[%clk 0:00:54]} 20. Rcc1 {[%clk 0:00:53]}  Nb5 {[%clk 0:00:52]} 21. Qb4 {[%clk 0:00:53]}  Nd6 {[%clk 0:00:41]} 22. g4 {[%clk 0:00:53]}  Bg6 {[%clk 0:00:36]} 23. Rfd1 {[%clk 0:00:53]}  a5 {[%clk 0:00:35]} 24. Qb6 {[%clk 0:00:47]}  e4 {[%clk 0:00:34]} 25. Be2 {[%clk 0:00:47]}  Qe5 {[%clk 0:00:33]} 26. Na4 {[%clk 0:00:40]}  Kh7 {[%clk 0:00:31]} 27. Rc5 {[%clk 0:00:37]}  Qf6 {[%clk 0:00:31]} 28. Rcd5 {[%clk 0:00:37]}  Rbc8 {[%clk 0:00:18]} 29. Rxd6 {[%clk 0:00:35]}  Rxd6 {[%clk 0:00:19]} 30. Qxd6 {[%clk 0:00:36]}  Qg5 {[%clk 0:00:18]} 31. Nc3 {[%clk 0:00:34]}  a4 {[%clk 0:00:18]} 32. a3 {[%clk 0:00:34]}  Rc6 {[%clk 0:00:14]} 33. Qf4 {[%clk 0:00:32]}  Qc5 {[%clk 0:00:12]} 34. Rd4 {[%clk 0:00:28]}  Rb6 {[%clk 0:00:10]} 35. Nxa4 {[%clk 0:00:19]}  Qc1+ {[%clk 0:00:10]} 36. Rd1 {[%clk 0:00:20]}  Qc2 {[%clk 0:00:11]} 37. Nxb6 {[%clk 0:00:20]}  Qxe2 {[%clk 0:00:12]} 38. Rf1 {[%clk 0:00:19]}  Qxb2 {[%clk 0:00:12]} 39. Nd7 {[%clk 0:00:18]}  Qa2 {[%clk 0:00:12]} 40. Nf8+ {[%clk 0:00:18]} 1-0


[Site "https://www.chess.com"]

[Event "Titled Tuesday Blitz April 12 Early 2022"]
[White "Lopez, Henry"]
[Black "Martic, Ivan"]
[WhiteFideId "5203830"]
[BlackFideId "929301"]
[WhiteElo "2177"]
[BlackElo "2317"]
[Result "1-0"]
[Round "10"]
[TimeControl "180+1"]
[Date "2022.04.13"]
[WhiteClock "0:00:29"]
[BlackClock "0:00:23"]

1. d4 {[%clk 0:03:00]}  Nf6 {[%clk 0:02:57]} 2. Nf3 {[%clk 0:02:58]}  g6 {[%clk 0:02:57]} 3. c4 {[%clk 0:02:57]}  Bg7 {[%clk 0:02:58]} 4. Nc3 {[%clk 0:02:58]}  O-O {[%clk 0:02:58]} 5. e4 {[%clk 0:02:58]}  d6 {[%clk 0:02:58]} 6. Be2 {[%clk 0:02:58]}  e5 {[%clk 0:02:57]} 7. O-O {[%clk 0:02:59]}  c6 {[%clk 0:02:56]} 8. d5 {[%clk 0:02:52]}  Na6 {[%clk 0:02:52]} 9. Be3 {[%clk 0:02:48]}  Ng4 {[%clk 0:02:51]} 10. Bg5 {[%clk 0:02:47]}  f6 {[%clk 0:02:51]} 11. Bh4 {[%clk 0:02:47]}  c5 {[%clk 0:02:51]} 12. Nd2 {[%clk 0:02:44]}  Nh6 {[%clk 0:02:49]} 13. f3 {[%clk 0:02:38]}  Nf7 {[%clk 0:02:49]} 14. a3 {[%clk 0:02:34]}  Bh6 {[%clk 0:02:46]} 15. Bf2 {[%clk 0:02:33]}  Bd7 {[%clk 0:02:45]} 16. Rb1 {[%clk 0:02:31]}  b6 {[%clk 0:02:43]} 17. b4 {[%clk 0:02:28]}  f5 {[%clk 0:02:42]} 18. Bd3 {[%clk 0:02:24]}  Bf4 {[%clk 0:02:39]} 19. Re1 {[%clk 0:02:17]}  Kg7 {[%clk 0:02:21]} 20. Nf1 {[%clk 0:02:12]}  h5 {[%clk 0:02:16]} 21. exf5 {[%clk 0:02:02]}  gxf5 {[%clk 0:02:17]} 22. Ng3 {[%clk 0:02:01]}  Qg5 {[%clk 0:02:15]} 23. h4 {[%clk 0:01:59]}  Qg6 {[%clk 0:02:13]} 24. Nce2 {[%clk 0:01:58]}  Bh6 {[%clk 0:02:07]} 25. Qc2 {[%clk 0:01:54]}  Nh8 {[%clk 0:01:41]} 26. Kh2 {[%clk 0:01:47]}  Rae8 {[%clk 0:01:25]} 27. b5 {[%clk 0:01:38]}  Nc7 {[%clk 0:01:23]} 28. a4 {[%clk 0:01:38]}  Re7 {[%clk 0:01:18]} 29. a5 {[%clk 0:01:37]}  Ref7 {[%clk 0:01:18]} 30. Ra1 {[%clk 0:01:35]}  Bf4 {[%clk 0:01:06]} 31. Nxf4 {[%clk 0:01:33]}  exf4 {[%clk 0:01:07]} 32. Ne2 {[%clk 0:01:32]}  Kh6 {[%clk 0:00:58]} 33. Nxf4 {[%clk 0:01:27]}  Qf6 {[%clk 0:00:58]} 34. Qd2 {[%clk 0:01:25]}  Kh7 {[%clk 0:00:53]} 35. axb6 {[%clk 0:01:24]}  axb6 {[%clk 0:00:53]} 36. Ra7 {[%clk 0:01:23]}  Rc8 {[%clk 0:00:53]} 37. Nxh5 {[%clk 0:01:17]}  Qh6 {[%clk 0:00:50]} 38. Qxh6+ {[%clk 0:01:16]}  Kxh6 {[%clk 0:00:51]} 39. Nf4 {[%clk 0:01:16]}  Ng6 {[%clk 0:00:49]} 40. Be3 {[%clk 0:01:11]}  Ne5 {[%clk 0:00:47]} 41. Bf1 {[%clk 0:01:03]}  Kg7 {[%clk 0:00:47]} 42. Bd2 {[%clk 0:01:02]}  Ne8 {[%clk 0:00:41]} 43. Bc3 {[%clk 0:01:01]}  Nf6 {[%clk 0:00:38]} 44. Bxe5 {[%clk 0:00:57]}  dxe5 {[%clk 0:00:38]} 45. Rxe5 {[%clk 0:00:57]}  Rh8 {[%clk 0:00:38]} 46. g3 {[%clk 0:00:53]}  Ne8 {[%clk 0:00:34]} 47. Rb7 {[%clk 0:00:46]}  Rh6 {[%clk 0:00:27]} 48. Rxd7 {[%clk 0:00:45]}  Rxd7 {[%clk 0:00:27]} 49. Rxe8 {[%clk 0:00:45]}  Ra7 {[%clk 0:00:27]} 50. Bd3 {[%clk 0:00:43]}  Ra2+ {[%clk 0:00:26]} 51. Kh3 {[%clk 0:00:41]}  Kf6 {[%clk 0:00:24]} 52. Re6+ {[%clk 0:00:37]}  Kg7 {[%clk 0:00:24]} 53. Re7+ {[%clk 0:00:32]}  Kf6 {[%clk 0:00:24]} 54. d6 {[%clk 0:00:31]}  Rh8 {[%clk 0:00:23]} 55. Nd5+ {[%clk 0:00:29]} 1-0


[Site "https://www.chess.com"]

[Event "Titled Tuesday Blitz April 12 Early 2022"]
[White "Maevsky, Nikolay"]
[Black "Omariev, Maksim"]
[WhiteFideId "4198220"]
[BlackFideId "4193423"]
[WhiteElo "2126"]
[BlackElo "2498"]
[Result "1-0"]
[Round "10"]
[TimeControl "180+1"]
[Date "2022.04.13"]
[WhiteClock "0:00:05"]
[BlackClock "0:00:02"]

1. d4 {[%clk 0:03:00]}  h5 {[%clk 0:02:57]} 2. e4 {[%clk 0:03:00]}  h4 {[%clk 0:02:58]} 3. h3 {[%clk 0:03:00]}  c6 {[%clk 0:02:58]} 4. c4 {[%clk 0:02:58]}  d6 {[%clk 0:02:58]} 5. Nc3 {[%clk 0:02:59]}  e5 {[%clk 0:02:58]} 6. Nf3 {[%clk 0:02:58]}  Nd7 {[%clk 0:02:57]} 7. Be2 {[%clk 0:02:55]}  Be7 {[%clk 0:02:55]} 8. Be3 {[%clk 0:02:51]}  Bf6 {[%clk 0:02:48]} 9. d5 {[%clk 0:02:48]}  c5 {[%clk 0:02:39]} 10. a3 {[%clk 0:02:48]}  Ne7 {[%clk 0:02:31]} 11. Qd2 {[%clk 0:02:47]}  Ng6 {[%clk 0:02:23]} 12. b4 {[%clk 0:02:44]}  Nf4 {[%clk 0:02:19]} 13. Bxf4 {[%clk 0:02:29]}  exf4 {[%clk 0:02:19]} 14. Rc1 {[%clk 0:02:29]}  g5 {[%clk 0:01:59]} 15. Nb5 {[%clk 0:02:22]}  Qb6 {[%clk 0:01:53]} 16. O-O {[%clk 0:02:03]}  a6 {[%clk 0:01:53]} 17. bxc5 {[%clk 0:02:03]}  Nxc5 {[%clk 0:01:47]} 18. Nbd4 {[%clk 0:01:38]}  Nxe4 {[%clk 0:01:37]} 19. Qc2 {[%clk 0:01:36]}  Nc5 {[%clk 0:01:29]} 20. Rb1 {[%clk 0:01:27]}  Qa5 {[%clk 0:01:24]} 21. Nf5 {[%clk 0:01:25]}  Qc7 {[%clk 0:01:15]} 22. N3d4 {[%clk 0:01:10]}  O-O {[%clk 0:01:11]} 23. Rfe1 {[%clk 0:00:57]}  Bxf5 {[%clk 0:00:59]} 24. Nxf5 {[%clk 0:00:57]}  Rfe8 {[%clk 0:01:00]} 25. Bh5 {[%clk 0:00:49]}  Rxe1+ {[%clk 0:00:55]} 26. Rxe1 {[%clk 0:00:48]}  Rf8 {[%clk 0:00:56]} 27. Nh6+ {[%clk 0:00:34]}  Kg7 {[%clk 0:00:53]} 28. Nf5+ {[%clk 0:00:24]}  Kh8 {[%clk 0:00:49]} 29. Bd1 {[%clk 0:00:11]}  Be5 {[%clk 0:00:41]} 30. Qe2 {[%clk 0:00:10]}  f6 {[%clk 0:00:42]} 31. Bc2 {[%clk 0:00:10]}  Qf7 {[%clk 0:00:39]} 32. Qg4 {[%clk 0:00:08]}  b5 {[%clk 0:00:18]} 33. Nh6 {[%clk 0:00:08]}  f5 {[%clk 0:00:07]} 34. Qxg5 {[%clk 0:00:07]}  Qf6 {[%clk 0:00:03]} 35. Qh5 {[%clk 0:00:07]}  Kg7 {[%clk 0:00:03]} 36. Nxf5+ {[%clk 0:00:07]}  Kg8 {[%clk 0:00:03]} 37. Qg4+ {[%clk 0:00:07]}  Kf7 {[%clk 0:00:03]} 38. Qh5+ {[%clk 0:00:07]}  Kg8 {[%clk 0:00:02]} 39. Nxh4 {[%clk 0:00:07]}  Qg7 {[%clk 0:00:02]} 40. Nf5 {[%clk 0:00:07]}  Qf6 {[%clk 0:00:02]} 41. Qg4+ {[%clk 0:00:07]}  Kf7 {[%clk 0:00:02]} 42. Qh5+ {[%clk 0:00:07]}  Kg8 {[%clk 0:00:03]} 43. Bb1 {[%clk 0:00:07]}  bxc4 {[%clk 0:00:03]} 44. Nh6+ {[%clk 0:00:07]}  Kg7 {[%clk 0:00:03]} 45. Ng4 {[%clk 0:00:07]}  Qe7 {[%clk 0:00:02]} 46. Qh7# {[%clk 0:00:05]} 1-0


[Site "https://www.chess.com"]

[Event "Titled Tuesday Blitz April 12 Early 2022"]
[White "Mekhitarian, Krikor Sevag"]
[Black "Csonka, Balazs"]
[WhiteFideId "2107660"]
[BlackFideId "742910"]
[WhiteElo "2598"]
[BlackElo "2404"]
[Result "0-1"]
[Round "10"]
[TimeControl "180+1"]
[Date "2022.04.12"]
[WhiteClock "0:00:04"]
[BlackClock "0:00:05"]

1. Nf3 {[%clk 0:03:00]}  e6 {[%clk 0:03:00]} 2. c4 {[%clk 0:02:59]}  d5 {[%clk 0:02:57]} 3. e3 {[%clk 0:02:57]}  Nf6 {[%clk 0:02:54]} 4. Nc3 {[%clk 0:02:56]}  c6 {[%clk 0:02:54]} 5. b3 {[%clk 0:02:56]}  Bd6 {[%clk 0:02:53]} 6. Bb2 {[%clk 0:02:55]}  O-O {[%clk 0:02:54]} 7. Qc2 {[%clk 0:02:56]}  e5 {[%clk 0:02:53]} 8. cxd5 {[%clk 0:02:56]}  cxd5 {[%clk 0:02:53]} 9. Nb5 {[%clk 0:02:56]}  Nc6 {[%clk 0:02:53]} 10. Nxd6 {[%clk 0:02:56]}  Qxd6 {[%clk 0:02:54]} 11. d4 {[%clk 0:02:56]}  Ne4 {[%clk 0:02:30]} 12. a3 {[%clk 0:02:44]}  exd4 {[%clk 0:01:51]} 13. Nxd4 {[%clk 0:02:45]}  Nxd4 {[%clk 0:01:51]} 14. Bxd4 {[%clk 0:02:42]}  Bf5 {[%clk 0:01:51]} 15. Qb2 {[%clk 0:02:41]}  Qg6 {[%clk 0:01:28]} 16. f3 {[%clk 0:02:32]}  Ng5 {[%clk 0:01:11]} 17. Rd1 {[%clk 0:01:43]}  Rfc8 {[%clk 0:01:00]} 18. Rd2 {[%clk 0:01:40]}  Ne6 {[%clk 0:00:42]} 19. Be5 {[%clk 0:01:38]}  Nc5 {[%clk 0:00:34]} 20. Kf2 {[%clk 0:01:30]}  Bd3 {[%clk 0:00:25]} 21. Bc3 {[%clk 0:00:42]}  Bxf1 {[%clk 0:00:21]} 22. Kxf1 {[%clk 0:00:43]}  Rc6 {[%clk 0:00:18]} 23. h4 {[%clk 0:00:36]}  h5 {[%clk 0:00:15]} 24. Rh3 {[%clk 0:00:36]}  Rac8 {[%clk 0:00:15]} 25. Rc2 {[%clk 0:00:16]}  Nd3 {[%clk 0:00:13]} 26. Qa1 {[%clk 0:00:16]}  Nf4 {[%clk 0:00:09]} 27. exf4 {[%clk 0:00:06]}  Qxc2 {[%clk 0:00:10]} 28. Be1 {[%clk 0:00:05]}  Rg6 {[%clk 0:00:08]} 29. Rg3 {[%clk 0:00:05]}  Rxg3 {[%clk 0:00:07]} 30. Bxg3 {[%clk 0:00:06]}  Qc1+ {[%clk 0:00:07]} 31. Qxc1 {[%clk 0:00:06]}  Rxc1+ {[%clk 0:00:08]} 32. Be1 {[%clk 0:00:07]}  Rc2 {[%clk 0:00:06]} 33. a4 {[%clk 0:00:06]}  d4 {[%clk 0:00:06]} 34. Bb4 {[%clk 0:00:04]}  d3 {[%clk 0:00:07]} 35. Ke1 {[%clk 0:00:05]}  f5 {[%clk 0:00:05]} 36. a5 {[%clk 0:00:05]}  Rxg2 {[%clk 0:00:04]} 37. Bc5 {[%clk 0:00:04]}  a6 {[%clk 0:00:04]} 38. Kd1 {[%clk 0:00:04]}  Rc2 {[%clk 0:00:03]} 39. Be3 {[%clk 0:00:04]}  g6 {[%clk 0:00:04]} 40. b4 {[%clk 0:00:04]}  Kf7 {[%clk 0:00:05]} 0-1


[Site "https://www.chess.com"]

[Event "Titled Tuesday Blitz April 12 Early 2022"]
[White "Mikhalsky, Vladimir"]
[Black "Sapunov, Evgeny"]
[WhiteFideId "14144352"]
[BlackFideId "4126661"]
[WhiteElo "2301"]
[BlackElo "2470"]
[Result "0-1"]
[Round "10"]
[TimeControl "180+1"]
[Date "2022.04.13"]
[WhiteClock "0:00:05"]
[BlackClock "0:01:21"]

1. c4 {[%clk 0:02:59]}  Nf6 {[%clk 0:02:59]} 2. Nc3 {[%clk 0:02:58]}  g6 {[%clk 0:02:59]} 3. e4 {[%clk 0:02:57]}  d6 {[%clk 0:02:59]} 4. d4 {[%clk 0:02:58]}  Bg7 {[%clk 0:03:00]} 5. f3 {[%clk 0:02:58]}  O-O {[%clk 0:03:00]} 6. Be3 {[%clk 0:02:58]}  Nc6 {[%clk 0:03:00]} 7. Nge2 {[%clk 0:02:57]}  a6 {[%clk 0:03:00]} 8. Rb1 {[%clk 0:02:56]}  Bd7 {[%clk 0:02:55]} 9. b4 {[%clk 0:02:52]}  e5 {[%clk 0:02:55]} 10. d5 {[%clk 0:02:52]}  Ne7 {[%clk 0:02:55]} 11. c5 {[%clk 0:02:46]}  Nh5 {[%clk 0:02:55]} 12. g4 {[%clk 0:02:30]}  Nf4 {[%clk 0:02:55]} 13. Nxf4 {[%clk 0:02:30]}  exf4 {[%clk 0:02:55]} 14. Bd4 {[%clk 0:02:30]}  g5 {[%clk 0:02:49]} 15. h4 {[%clk 0:02:22]}  h6 {[%clk 0:02:45]} 16. hxg5 {[%clk 0:02:22]}  hxg5 {[%clk 0:02:45]} 17. Bxg7 {[%clk 0:01:41]}  Kxg7 {[%clk 0:02:45]} 18. Ne2 {[%clk 0:01:26]}  Ng6 {[%clk 0:02:43]} 19. Nd4 {[%clk 0:01:26]}  Qf6 {[%clk 0:02:42]} 20. Kf2 {[%clk 0:01:22]}  Rh8 {[%clk 0:02:42]} 21. Bg2 {[%clk 0:01:10]}  Rxh1 {[%clk 0:02:40]} 22. Bxh1 {[%clk 0:01:10]}  Rh8 {[%clk 0:02:38]} 23. Kg1 {[%clk 0:01:07]}  Ne5 {[%clk 0:02:34]} 24. Rc1 {[%clk 0:00:58]}  Qh6 {[%clk 0:02:23]} 25. Bg2 {[%clk 0:00:55]}  Qh2+ {[%clk 0:02:06]} 26. Kf1 {[%clk 0:00:55]}  Bb5+ {[%clk 0:01:47]} 27. Nxb5 {[%clk 0:00:48]}  axb5 {[%clk 0:01:48]} 28. cxd6 {[%clk 0:00:45]}  cxd6 {[%clk 0:01:48]} 29. Rc2 {[%clk 0:00:45]}  Qg3 {[%clk 0:01:41]} 30. Qe1 {[%clk 0:00:43]}  Ra8 {[%clk 0:01:33]} 31. Qxg3 {[%clk 0:00:41]}  fxg3 {[%clk 0:01:33]} 32. Rc7 {[%clk 0:00:11]}  Rxa2 {[%clk 0:01:31]} 33. Rxb7 {[%clk 0:00:11]}  Nd3 {[%clk 0:01:28]} 34. Rxb5 {[%clk 0:00:06]}  Ra1+ {[%clk 0:01:26]} 35. Ke2 {[%clk 0:00:06]}  Nf4+ {[%clk 0:01:27]} 36. Kd2 {[%clk 0:00:06]}  Nxg2 {[%clk 0:01:27]} 37. Rb7 {[%clk 0:00:06]}  Nf4 {[%clk 0:01:26]} 38. e5 {[%clk 0:00:05]}  g2 {[%clk 0:01:21]} 0-1


[Site "https://www.chess.com"]

[Event "Titled Tuesday Blitz April 12 Early 2022"]
[White "Nakamura, Hikaru"]
[Black "Jobava, Baadur"]
[WhiteFideId "2016192"]
[BlackFideId "13601520"]
[WhiteElo "2850"]
[BlackElo "2617"]
[Result "1-0"]
[Round "10"]
[TimeControl "180+1"]
[Date "2022.04.12"]
[WhiteClock "0:00:10"]
[BlackClock "0:00:16"]

1. Nf3 {[%clk 0:03:00]}  Nf6 {[%clk 0:03:00]} 2. b3 {[%clk 0:03:00]}  b6 {[%clk 0:02:58]} 3. g3 {[%clk 0:02:59]}  Bb7 {[%clk 0:02:59]} 4. Bb2 {[%clk 0:03:00]}  Bxf3 {[%clk 0:02:57]} 5. exf3 {[%clk 0:03:01]}  c5 {[%clk 0:02:58]} 6. Bxf6 {[%clk 0:02:58]}  gxf6 {[%clk 0:02:57]} 7. f4 {[%clk 0:02:58]}  Nc6 {[%clk 0:02:57]} 8. Bg2 {[%clk 0:02:58]}  f5 {[%clk 0:02:53]} 9. O-O {[%clk 0:02:52]}  Bg7 {[%clk 0:02:53]} 10. c3 {[%clk 0:02:52]}  O-O {[%clk 0:02:52]} 11. Na3 {[%clk 0:02:52]}  d5 {[%clk 0:02:51]} 12. Nc2 {[%clk 0:02:44]}  e6 {[%clk 0:02:50]} 13. Ne1 {[%clk 0:02:44]}  a5 {[%clk 0:02:47]} 14. Rb1 {[%clk 0:02:40]}  a4 {[%clk 0:02:46]} 15. bxa4 {[%clk 0:02:38]}  Qc7 {[%clk 0:02:44]} 16. Nf3 {[%clk 0:02:24]}  Ra7 {[%clk 0:02:35]} 17. Qb3 {[%clk 0:02:20]}  Rb8 {[%clk 0:02:31]} 18. Rfc1 {[%clk 0:02:19]}  c4 {[%clk 0:02:31]} 19. Qc2 {[%clk 0:02:04]}  Rba8 {[%clk 0:02:30]} 20. Rb2 {[%clk 0:02:05]}  Rxa4 {[%clk 0:02:28]} 21. Rcb1 {[%clk 0:02:05]}  R4a6 {[%clk 0:02:26]} 22. Bf1 {[%clk 0:02:03]}  Ne7 {[%clk 0:02:16]} 23. d3 {[%clk 0:01:59]}  Ra3 {[%clk 0:02:10]} 24. Rxb6 {[%clk 0:01:51]}  Rxc3 {[%clk 0:02:09]} 25. Qd1 {[%clk 0:01:51]}  cxd3 {[%clk 0:01:55]} 26. a4 {[%clk 0:01:22]}  Bf6 {[%clk 0:01:50]} 27. Bxd3 {[%clk 0:01:21]}  Kg7 {[%clk 0:01:50]} 28. R6b4 {[%clk 0:01:15]}  Rc8 {[%clk 0:01:44]} 29. Kg2 {[%clk 0:01:11]}  Qc5 {[%clk 0:01:41]} 30. Rb7 {[%clk 0:01:10]}  Qa3 {[%clk 0:01:38]} 31. Be2 {[%clk 0:00:55]}  Rc2 {[%clk 0:01:32]} 32. Ra7 {[%clk 0:00:20]}  Ra2 {[%clk 0:01:20]} 33. Rb3 {[%clk 0:00:15]}  Qc5 {[%clk 0:01:19]} 34. Rbb7 {[%clk 0:00:16]}  Qa3 {[%clk 0:01:04]} 35. Qd3 {[%clk 0:00:11]}  Rc3 {[%clk 0:00:51]} 36. Qb5 {[%clk 0:00:11]}  Rxf3 {[%clk 0:00:40]} 37. Bxf3 {[%clk 0:00:08]}  Bd4 {[%clk 0:00:40]} 38. Rxe7 {[%clk 0:00:08]}  Rxf2+ {[%clk 0:00:40]} 39. Kh3 {[%clk 0:00:08]}  Qxf3 {[%clk 0:00:38]} 40. Rxf7+ {[%clk 0:00:09]}  Kg6 {[%clk 0:00:38]} 41. Rg7+ {[%clk 0:00:09]}  Bxg7 {[%clk 0:00:38]} 42. Qe8+ {[%clk 0:00:09]}  Kh6 {[%clk 0:00:16]} 43. Qxe6+ {[%clk 0:00:09]}  Kh5 {[%clk 0:00:16]} 44. Qxf5+ {[%clk 0:00:10]}  Kh6 {[%clk 0:00:16]} 45. Qg5# {[%clk 0:00:10]} 1-0


[Site "https://www.chess.com"]